Cogmind - Beta 14 @@@ ROGUE MODE // 2025.04.25 @ 15:18:53 // Winter2019/RPGLIKE Player: EREBUS79 Result: Self-destructed Performance ------------- Evolutions (0) 0 Regions Visited (3) 600 Robots Destroyed (61) 305 Value Destroyed (1651) 1651 Prototype IDs (16) 320 Alien Tech Used (0) 0 Bonus (-22) -22 TOTAL SCORE: 2854 Bonus ------- Friendly Fire -22 Cogmind --------- Core Integrity 71/600 Matter 300/300 Energy 250/250 System Corruption 1% Temperature Cool (0) Movement Rolling (115) Ox1 Location -8/Recycling Parts ------- > --- POWER (1) -------- Ion Engine > --- PROPULSION (1) --- Compact Wheel > --- UTILITY (3) ------ Light Armor Plating > --- WEAPON (4) ------- Advanced Beam Cannon Advanced Beam Cannon EMP Blaster Missile Launcher > --- INVENTORY (0) ---- (None) Peak State ------------ > --- POWER ------------ Ion Engine > --- PROPULSION ------- Compact Wheel > --- UTILITY ---------- Improved Terrain Scanner Tower Shield > --- WEAPON ----------- Advanced Beam Cannon Advanced Beam Cannon EMP Blaster Grenade Launcher > --- INVENTORY -------- (None) [Rating: 34] Favorites ----------- Power Ion Engine Engine Ion Engine Propulsion Compact Wheel Wheel Compact Wheel Utility Improved Terrain Scanner Device Improved Terrain Scanner Protection Tower Shield Weapon Advanced Beam Cannon Energy Gun EM Pulse Gun Energy Cannon Advanced Beam Cannon Ballistic Gun Assault Rifle Launcher Grenade Launcher Build | -11 -10 -10 -8 ------- Run | Yrd Mat Sub Rec Slots Evolved 5 | 4 . 1 . Power . | . . . . Propulsion . | . . . . Utility 2 | 1 . 1 . Weapon 3 | 3 . . . Parts Attached 17 | 7 5 1 4 Power 1 | 1 . . . Engine 1 | 1 . . . Core . | . . . . Reactor . | . . . . Propulsion 1 | 1 . . . Treads . | . . . . Leg . | . . . . Wheel 1 | 1 . . . Hover . | . . . . Flight . | . . . . Utility 7 | 2 1 1 3 Device 2 | 2 . . . Storage . | . . . . Processor . | . . . . Hackware . | . . . . Protection 5 | . 1 1 3 Artifact . | . . . . Weapon 8 | 3 4 . 1 Energy Gun 2 | 2 . . . Energy Cannon 2 | . 2 . . Ballistic Gun 1 | 1 . . . Ballistic Cannon . | . . . . Launcher 3 | . 2 . 1 Special Weapon . | . . . . Impact Weapon . | . . . . Slashing Weapon . | . . . . Piercing Weapon . | . . . . Special Melee Weapon . | . . . . Unidentified Prototypes 1 | . 1 . . Parts Lost 3 | . . . 3 Power . | . . . . Propulsion . | . . . . Utility 3 | . . . 3 Weapon . | . . . . Highest Loss Streak 2 | . . . 2 To Critical Strikes . | . . . . Average Slot Usage (%) 79 | . 99 52 91 Engine 9 | . 12 6 11 Wheel 9 | . 12 6 11 Device 9 | . 18 6 2 Protection 10 | . 5 6 22 Energy Cannon 18 | . 23 12 22 Ballistic Gun 3 | . 11 . . Launcher 15 | . 12 12 22 Peak Build Rating 34 | 9 15 34 34 Average Rating 21 | 5 13 32 16 On Entrance 14 | . 9 15 34 Naked Turns . | . . . . Heaviest Build 59 | 13 22 59 59 Greatest Support 21 | 16 21 21 21 Greatest Overweight (x) 2 | . 1 2 2 Average Overweight (x) 1 | . . 1 . Largest Inventory Capacity . | . . . . Average Capacity . | . . . . Most Carried . | . . . . Average Carried . | . . . . Final Capacity . | . . . . Final Carried . | . . . . Class Distribution -------------------- 84% | Gunner 15% | Tank Dominant Class ---------------- Gunner | -10/Materials Gunner | -10/Subcaves Tank | -8/Recycling Resources | -11 -10 -10 -8 ----------- Run | Yrd Mat Sub Rec Matter Collected 1472 | 282 552 148 490 Remotely 407 | 212 195 . . Salvage Created 2224 | 171 644 309 1100 Parts 122 | 14 50 19 39 Haulers Intercepted 1 | . 1 . . Recyclers Shooed 1 | . 1 . . Parts Field Recycled . | . . . . Retrieved Matter . | . . . . Parts Self-Destructed 10 | . . 10 . Prevented . | . . . . Kills | -11 -10 -10 -8 ------- Run | Yrd Mat Sub Rec Combat Hostiles Destroyed 27 | . 11 10 6 Guns 1 | . 1 . . Cannons 18 | . 7 6 5 AOE 7 | . 2 4 1 Classes Destroyed 14 | 2 6 3 3 Worker 5 | . 5 . . Builder 4 | . 4 . . Tunneler 7 | 5 2 . . Hauler 1 | . 1 . . Recycler 12 | 1 2 . 9 Operator 1 | . 1 . . Turret 2 | . . 2 . Watcher 2 | . 2 . . Swarmer 3 | . . 3 . Grunt 11 | . 11 . . Sentry 3 | . . . 3 Subdweller 7 | . . 7 . Scientist 2 | . . . 2 Scrapper 3 | . . . 3 Best Kill Streak 6 | 6 4 5 6 Combat Bots Only 3 | . 3 3 2 Max Kills in Single Turn 4 | 3 1 2 4 Gunslinging . | . . . . Exploded 1 | . 1 1 1 Melee . | . . . . Uniques/NPCs Destroyed . | . . . . Combat | -11 -10 -10 -8 -------- Run | Yrd Mat Sub Rec Hostile Shots Fired 123 | . 48 55 20 Missed 34 | . 15 16 3 Damage Taken 1464 | 14 433 576 441 Core 904 | 12 344 260 288 Absorbed by Shields . | . . . . Redirected to Core 765 | 5 309 237 214 Redirected to Shielding 41 | . . . 41 Core Remaining (%) 98 | 98 . . . Volleys Fired 188 | 4 100 30 54 Largest 4 | 3 4 4 4 Hottest 205 | 100 186 199 205 Shots Fired 560 | 12 297 83 168 Gun 106 | 12 94 . . Cannon 349 | . 180 60 109 Launcher 105 | . 23 23 59 Special . | . . . . Kinetic 98 | 4 94 . . Thermal 349 | . 180 60 109 Explosive 55 | . 23 6 26 Electromagnetic 58 | 8 . 17 33 Robot Hit Streak 31 | 4 12 31 11 Robot Miss Streak 6 | 1 6 3 1 Penetration Max . | . . . . Secondary Targets . | . . . . Shots Hit Robots 163 | 5 87 46 25 Core Hits 97 | 7 41 23 26 Critical Kills 2 | . 2 . . Critical Parts Destroyed . | . . . . Critical Strikes 2 | . 2 . . Meltdown 2 | . 2 . . Melee Attacks . | . . . . Impact . | . . . . Slashing . | . . . . Piercing . | . . . . Sneak Attacks . | . . . . Combat Hostiles . | . . . . Follow-up Attacks . | . . . . Damage Inflicted 4798 | 143 1969 1200 1486 Guns 324 | 53 271 . . Cannons 2403 | . 1133 735 535 Explosions 2071 | 90 565 465 951 Melee . | . . . . Ramming . | . . . . Kinetic 298 | 27 271 . . Thermal 2602 | 90 1233 735 544 Explosive 1108 | . 465 129 514 Electromagnetic 790 | 26 . 336 428 Impact . | . . . . Slashing . | . . . . Piercing . | . . . . Highest Corruption 1 | . . . 1 Average Corruption 1 | . . . 1 Corruption Purged . | . . . . Corruption Blocked . | . . . . Effects 8 | . . . 8 Message Errors 4 | . . . 4 Matter Fused 1 | . . . 1 Data Loss (minor) 2 | . . . 2 Misfires 1 | . . . 1 Overload Shots . | . . . . Overflow Damage 145 | . 53 17 75 Projectiles 58 | . 22 17 19 Explosions 87 | . 31 . 56 Melee . | . . . . Knockbacks . | . . . . Impact . | . . . . Kinetic . | . . . . Secondary . | . . . . Self-Inflicted Damage 98 | 15 . . 83 Shots 6 | 1 . . 5 Rammed . | . . . . Targets Rammed . | . . . . Kicked . | . . . . Crushed . | . . . . Highest Temperature 358 | 33 358 2 108 Average Temperature 76 | 16 100 2 31 Received Heat Transfer 564 | . 288 105 171 Effects 5 | . 5 . . Interference 4 | . 4 . . Damage (minor) 1 | . 1 . . Siege Activations . | . . . . Robots Corrupted . | . . . . Combat Hostiles . | . . . . Parts Fried . | . . . . Impact Corruptions . | . . . . Robots Melted 2 | . 2 . . Combat Hostiles 1 | . 1 . . Parts Melted 9 | . 5 1 3 Heat Transferred 4471 | 150 2085 1332 904 Parts Sabotaged . | . . . . Parts Stolen . | . . . . Parts Stripped . | . . . . Power Chain Reactions 4 | 1 . 1 2 Alert | -11 -10 -10 -8 ------- Run | Yrd Mat Sub Rec Peak Influence 444 | 30 338 . 444 Initial 98 | . 19 . 98 Average 204 | 8 146 . 286 Maximum Alert Level 2 | . 1 . 2 Low Security (%) 45 | 100 69 . 12 Level 1 51 | . 30 . 79 Level 2 3 | . . . 7 Level 3 . | . . . . Level 4 . | . . . . Level 5 . | . . . . High Security . | . . . . Max Security . | . . . . Squads Dispatched 2 | . 2 . . Investigation 1 | . 1 . . Extermination . | . . . . Reinforcement 1 | . 1 . . Assault . | . . . . Garrison . | . . . . Intercept . | . . . . Searches Triggered . | . . . . Construction Impeded . | . . . . Haulers Reinforced . | . . . . Active Scanning Responses . | . . . . Cargo Convoy Interrupts . | . . . . Stealth | -11 -10 -10 -8 --------- Run | Yrd Mat Sub Rec Distress Signals 1 | . 1 . . Communications Jammed . | . . . . Distress Signals . | . . . . Times Spotted 41 | . 17 17 7 Peak Tracking Total 5 | . 3 5 2 Tactical Retreats 4 | . . 3 1 Traps | -11 -10 -10 -8 ------- Run | Yrd Mat Sub Rec Traps Triggered 2 | . 1 1 . Indirectly . | . . . . Trap Hack Attempts . | . . . . Triggered . | . . . . Disarmed . | . . . . Reprogrammed . | . . . . Reused . | . . . . Traps Extracted . | . . . . Installed . | . . . . Triggered 3 | . . 3 . Machines | -11 -10 -10 -8 ---------- Run | Yrd Mat Sub Rec Machines Disabled 46 | . 19 5 22 Max in Single Turn 3 | . 2 3 3 Machines Repaired . | . . . . Machines Dismantled . | . . . . Machines Sabotaged . | . . . . Overloaded Fab Kills . | . . . . Hacking | -11 -10 -10 -8 --------- Run | Yrd Mat Sub Rec Machines Accessed 13 | . 6 1 6 Terminals 9 | . 4 . 5 Fabricators . | . . . . Repair Stations 1 | . 1 . . Recycling Units 2 | . 1 . 1 Scanalyzers . | . . . . Garrison Access . | . . . . Total Hacks 38 | . 13 9 16 Successful 20 | . 6 9 5 Failed 18 | . 7 . 11 Catastrophic 3 | . 2 . 1 Database Lockouts . | . . . . Manual . | . . . . Terminals 24 | . 9 . 15 Fabricators . | . . . . Repair Stations 2 | . 2 . . Recycling Units 3 | . 2 . 1 Scanalyzers . | . . . . Garrison Access . | . . . . Terminal Hacks 18 | . 5 9 4 Record 8 | . . 8 . Prototype ID Bank 2 | . 1 . 1 Branch Access Points 2 | . 1 . 1 Alert Level 1 | . . . 1 Unreport Threat 2 | . 2 . . Dispatch Records 1 | . 1 . . Zone Layout 1 | . . . 1 Derelict Proto ID Bank 1 | . . 1 . Fabricator Hacks . | . . . . Repair Station Hacks 1 | . 1 . . Scan Component 1 | . 1 . . Recycling Unit Hacks 1 | . . . 1 Retrieve Components 1 | . . . 1 Scanalyzer . | . . . . Garrison Access Hacks . | . . . . Unauthorized Hacks . | . . . . Terminals . | . . . . Fabricators . | . . . . Repair Stations . | . . . . Recycling Units . | . . . . Scanalyzers . | . . . . Garrison Access . | . . . . Data Cores Recovered . | . . . . Used . | . . . . Hacking Detections 9 | . 5 . 4 Full Trace Events 1 | . . . 1 Feedback Events 1 | . . . 1 Corruption 1 | . . . 1 Feedback Blocked . | . . . . Robot Schematics Acquired . | . . . . Robots Built . | . . . . Authchips . | . . . . Time . | . . . . Total Robot Build Rating . | . . . . Part Schematics Acquired . | . . . . Parts Built . | . . . . Authchips . | . . . . Time . | . . . . Total Part Build Rating . | . . . . Parts Repaired . | . . . . Time . | . . . . Parts Recycled . | . . . . Recycled Matter . | . . . . Retrieved Matter . | . . . . Retrieved Components 2 | . . . 2 Parts Scanalyzed . | . . . . Part Schematics Acquired . | . . . . Parts Damaged . | . . . . Bothacking | -11 -10 -10 -8 ------------ Run | Yrd Mat Sub Rec Used RIF Installer . | . . . . Robots Hacked . | . . . . Non-combat . | . . . . Combat . | . . . . Robot Hacks Applied . | . . . . Relay Couplers Released . | . . . . Fabnet Peak Effective % . | . . . . Robots Rewired . | . . . . Allies Hacked . | . . . . Hacks Repelled . | . . . . Allies | -11 -10 -10 -8 -------- Run | Yrd Mat Sub Rec Total Allies . | . . . . Largest Group . | . . . . Highest-Rated Group . | . . . . Highest-Rated Ally . | . . . . Total Orders . | . . . . Ally Attacks . | . . . . Total Damage . | . . . . Kills . | . . . . Allies Corrupted . | . . . . Allies Melted . | . . . . Intel | -11 -10 -10 -8 ------- Run | Yrd Mat Sub Rec Robot Analysis Total . | . . . . Derelict Logs Recovered 1 | . . 1 . Drone Launches . | . . . . Drone Recoveries . | . . . . Exploration | -11 -10 -10 -8 ------------- Run | Yrd Mat Sub Rec Turns Passed 4770 | 63 1575 1861 1271 Spaces Moved 3167 | 41 1070 1313 743 Core 2 | 2 . . . Treads . | . . . . Legs . | . . . . Wheels 3165 | 39 1070 1313 743 Hover . | . . . . Flight . | . . . . Fastest Speed 50 | 50 100 100 100 Average Speed 116 | 97 104 129 114 Slowest Speed 130 | 100 115 130 130 Overloaded Moves . | . . . . Propulsion Burnouts . | . . . . Robots Hopped . | . . . . Cave-ins Triggered . | . . . . Exploration Rate (%) 67 | 3 97 72 99 Regions Visited 3 Branch Regions 2 Pre-discovered Areas . | . . . . Known Exits Taken . | . . . . Unknown Exits Taken 3 | 1 1 1 . Scrap Searched 3 | . . 3 . Spaces Dug . | . . . . Terrain Destroyed 500 | . 233 8 259 Melee . | . . . . Projectile 5 | . . . 5 AOE 495 | . 233 8 254 Terrain Rammed . | . . . . Walls Destroyed . | . . . . Machines Disabled . | . . . . Actions | -11 -10 -10 -8 --------- Run | Yrd Mat Sub Rec Total 3807 | 51 1312 1412 1032 Wait 402 | . 118 60 224 Move 3164 | 40 1069 1312 743 Hop . | . . . . Pick Up . | . . . . Fast Attach 17 | 7 5 1 4 Attach . | . . . . Detach . | . . . . Swap . | . . . . Drop 7 | . 4 1 2 Fire 188 | 4 100 30 54 Melee . | . . . . Ram . | . . . . Kick . | . . . . Crush . | . . . . Escape Stasis . | . . . . Rewire 2 | . 1 . 1 Trap . | . . . . Miscellaneous 27 | . 15 8 4 Route ------- -11/Scrapyard -10/Materials (discovered 6 exits: [*Mat x3] / *Min x2 / *Sub) -10/Subcaves (discovered 2 exits: [*Mat] / *Rec) -8/Recycling (discovered 1 exit: [*Fac]) History --------- Turn | Location | Event 2 | -11/Scrapyard | Upgraded with Utility slot (x1) 2 | -11/Scrapyard | Upgraded with Weapon slot (x3) 44 | -11/Scrapyard | Discovered new exit (range 13) 64 | -11/Scrapyard | Entered Materials 123 | -10/Materials | Discovered new exit (range 8) 293 | -10/Materials | Discovered new exit (range 12) 313 | -10/Materials | Build established: Gunner 562 | -10/Materials | Discovered new exit (range 15) 596 | -10/Materials | Identified exit to Mines 596 | -10/Materials | Reached level 2 1021 | -10/Materials | Discovered new exit (range 8) 1183 | -10/Materials | Discovered new exit (range 9) 1639 | -10/Materials | Entered Subcaves 1641 | -10/Subcaves | Reached level 3 1644 | -10/Subcaves | Upgraded with Utility slot (x1) 1756 | -10/Subcaves | Visited 4L-MR0's lab 1776 | -10/Subcaves | Found Tower Shield 1777 | -10/Subcaves | Attached Tower Shield, gained temporary slots: Power, Propulsion x2, Utility x2, Weapon x2 1940 | -10/Subcaves | Discovered new exit (range 10) 2908 | -10/Subcaves | Disturbed a concealed Subdweller 2911 | -10/Subcaves | Disturbed a concealed Subdweller 3114 | -10/Subcaves | Learned Materials garrison access intel 3442 | -10/Subcaves | Discovered new exit (range 14) 3460 | -10/Subcaves | Core integrity fell below 50% 3500 | -10/Subcaves | Entered Recycling 3502 | -8/Recycling | Reached level 4 3673 | -8/Recycling | Reached level 5 4023 | -8/Recycling | Build established: Tank 4079 | -8/Recycling | Discovered new exit (range 17) 4410 | -8/Recycling | Scanned before Scraplab entrance 4418 | -8/Recycling | Angered Scraplab inhabitants 4458 | -8/Recycling | Core integrity fell below 20% 4745 | -8/Recycling | Build established: Gunner 4771 | -8/Recycling | Self-destructed Last Messages --------------- 04476_ R-06 Scavenger collects Scrap Suit. 04477_ Scrap Suit violently self-destructs. 04477_ R-06 Scavenger destroyed. 04511_ The unstable cave ceiling collapses. 04513_ Destroyed Lgt. Ion Engine. 04516_ Destroyed Wheel. 04519_ NP-HH4(c) destroyed. 04533_ The unstable cave ceiling collapses. 04537_ DUZG/OL5 ,X4YNGVJ>,5& CY6 04564_ Destroyed Wheel. 04564_ Machine Analyzer melted. 04564_ 54-T00(c) destroyed. 04584_ The unstable cave ceiling collapses. 04602_ R-06 Scavenger collects Lgt. Ion Engine. 04606_ R-06 Scavenger collects Com. Wheel. 04610_ R-06 Scavenger collects Corrupted Mak. Microdissipator Network. 04613_ The unstable cave ceiling collapses. 04655_ Corrupted Ovr. Titanium Leg crushed. 04664_ The unstable cave ceiling collapses. 04741_ Acquired 51 matter. Map ----- +----------------------------------------------------+ | # ##??#???????????????????? | | # #???????????????????????? | | # ##??????????????????????? | | #??????????????????????? | | #??????????????????????? | | #????#???###???????????? | | #???????########???????? | | #???????# # #####???? | | # ###???#??# # #"#???? | | # %#??##### !! "##### | | # %%#??# =%= =% | | # %%#??# ### % %# ! # # | | # ###??# #?# [ # | | # ##???# #?# * # ## | | # #????# ##### # # # | | # #???## #???######## ####? | | # ######+##?????#" "#? | | # ## ##??#?#"& #? | | # #?????#" #? | | # " #?????#" #? | | + """ #?????#"& "#? | | # """ #?????#" #? | | # """ #?????#"X "#? | | # ## "" #?????#" ###? | | # ## """ ##????# "" #<#? | | # ## ##????# """ @ #? | | # ## ##????##########? | | # ## ####????????????? | | + ## ""#????????????? | | # ## ] Y"#????????????? | | # ## ""#????????????? | | # ## ####????????????? | | # # #???????????????? | | # ## #???#???????????? | | # ## #?#?????????????? | | # ## #???????????????? | | # ##+######???????????????? | | # # #??????????????????? | | + #??#??????????????? | | # ##?#???????????????? | | # ##?#???????????????? | | # ####???????#?????????? | | ####?????????????????? | | ##+###+###??????????????????? | | ! #??????????????????? | | #??????????????????? | | = #??#???????????????? | | #??????????????????? | | #??????????????????? | | #??????????????????? | +----------------------------------------------------+ Best States ------------- Heat Dissipation 61 Energy Generation 10 Energy Capacity 250 Matter Stores 300 Matter Capacity 300 Sight Range 17 Terrain Scan Range 16 Terrain Scan Density 10 Armor Coverage 2000 Propulsion Shielding 66 Evasion (%) 40 Item Schematics ----------------- None Robot Schematics ------------------ None Fabricated ------------ Nothing Alien Tech Used ----------------- None Achievements -------------- None Challenges ------------ None RPGLIKE | -11 -10 -10 -8 --------- Run | Yrd Mat Sub Rec Levels Raised 4 | . 1 1 2 XP Earned 10215 | 3000 2915 1500 2800 XP Spent 7500 | 2950 1550 1500 1500 Upgrades 18 | 5 8 3 2 Utility Slot 2 | 1 . 1 . Weapon Slot 3 | 3 . . . Heat Dissipation 6 | 1 5 . . Mass Support 1 | . 1 . . Sight Range 1 | . . 1 . Ranged Accuracy 5 | . 2 1 2 Protomatter Created 519 | . 291 139 89 Integrity Restored 375 | . 213 108 54 Core 375 | . 213 108 54 Protomatter Decayed 11 | . . 11 . Game ------ Seed FieldHellfireReplicator Manual? 0 Play Time 00:29:45 Cumulative 11.2 hours Start 2025.04.25 @ 13:38:45 End 2025.04.25 @ 15:18:53 Sessions 1 Manual Loads 0 Difficulty Rogue Special Mode Winter2019/RPGLIKE Game No. 22 Rogue 22 Adventurer 0 Explorer 0 Win Type - Total 0 Types 0/0/0/0/0/0/0/0/0 Lore% 23 Gallery% 16 Achievement% 16 Wizard Run 0 Options --------- Layout 0 ASCII 0 Keyboard 0 Movement Numpad Keybinds 0 Fullscreen 2 Font 14/Terminus Map View 36x27 Zoom Use 95% Tactical HUD 1 Map Filters NONE Filters NONE Steam 1 RUN: e01566f3-5417-4b0f-8e64-20c2e1fd7e0d